Cogmind - Beta 13 @@@ ROGUE MODE // 2024.06.22 @ 11:21:22 Player: CONNOR_M Result: Destroyed by Y-45 Defender with Heavy Assault Rifle Performance ------------- Evolutions (2) 1000 Regions Visited (7) 1400 Robots Destroyed (57) 285 Value Destroyed (1612) 1612 Prototype IDs (0) 0 Alien Tech Used (0) 0 Bonus (260) 260 TOTAL SCORE: 4557 Bonus ------- Follower Combat Kills 85 Entered Garrisons 200 Friendly Fire -25 Cogmind --------- Core Integrity 0/550 Matter 193/300 Energy 270/275 System Corruption 0% Temperature Cool (11) Movement Treading (157) Location -8/Materials Parts ------- > --- POWER (1) -------- Deuterium Engine > --- PROPULSION (2) --- Armored Treads Advanced Treads > --- UTILITY (6) ------ Large Storage Unit System Shield > --- WEAPON (2) ------- Minigun Advanced Assault Cannon > --- INVENTORY (15) --- Light Treads Large Storage Unit High-capacity Matter Pod (0) Signal Interpreter Light Armor Plating Improved Medium Armor Plating Improved Medium Armor Plating Improved Medium Armor Plating Improved Medium Armor Plating Improved Light Cannon Advanced Assault Cannon Rocket Launcher Heavy Hammer Great Axe Signal Generator Peak State ------------ > --- POWER ------------ Deuterium Engine > --- PROPULSION ------- Light Treads Armored Treads > --- UTILITY ---------- Large Storage Unit Light Armor Plating Improved Medium Armor Plating Improved Medium Armor Plating Improved Medium Armor Plating System Shield > --- WEAPON ----------- Advanced Assault Cannon Advanced Assault Cannon > --- INVENTORY -------- Large Storage Unit Medium Matter Pod Signal Interpreter Improved Medium Armor Plating Improved Light Cannon Rocket Launcher Heavy Hammer Great Axe Signal Generator [Rating: 34] Favorites ----------- Power Ion Engine Engine Ion Engine Power Core Light Nuclear Core Propulsion Armored Treads Treads Armored Treads Leg Aluminum Leg Wheel Wheel Utility Hardened Light Armor Plating Device Seismic Detector Storage Large Storage Unit Hackware System Shield Protection Hardened Light Armor Plating Weapon Advanced Assault Cannon Energy Gun Medium Laser Ballistic Gun Autogun Ballistic Cannon Advanced Assault Cannon Launcher Grenade Launcher Build | -11 -10 -10 -9 -9 -8 -8 -8 ------- Run | Yrd Mat Min Mat Min Mat Gar Mat Slots Evolved 4 | . . . 2 . 2 . . Power . | . . . . . . . . Propulsion . | . . . . . . . . Utility 4 | . . . 2 . 2 . . Weapon . | . . . . . . . . Parts Attached 53 | 7 4 . 15 . 2 9 16 Power 4 | 1 1 . . . . 1 1 Engine 3 | 1 1 . . . . . 1 Core 1 | . . . . . . 1 . Reactor . | . . . . . . . . Propulsion 16 | 2 2 . 6 . . 3 3 Treads 11 | . . . 5 . . 3 3 Leg 3 | . 2 . 1 . . . . Wheel 2 | 2 . . . . . . . Hover . | . . . . . . . . Flight . | . . . . . . . . Utility 18 | 2 1 . 4 . . 1 10 Device 2 | 1 1 . . . . . . Storage 4 | 1 . . 1 . . . 2 Processor . | . . . . . . . . Hackware 1 | . . . 1 . . . . Protection 11 | . . . 2 . . 1 8 Artifact . | . . . . . . . . Weapon 15 | 2 . . 5 . 2 4 2 Energy Gun 1 | 1 . . . . . . . Energy Cannon . | . . . . . . . . Ballistic Gun 3 | 1 . . 1 . . . 1 Ballistic Cannon 8 | . . . 3 . 2 2 1 Launcher 3 | . . . 1 . . 2 . Special Weapon . | . . . . . . . . Impact Weapon . | . . . . . . . . Slashing Weapon . | . . . . . . . . Piercing Weapon . | . . . . . . . . Special Melee Weapon . | . . . . . . . . Unidentified Prototypes . | . . . . . . . . Parts Lost 14 | . 2 . 2 . . 10 . Power 2 | . . . 1 . . 1 . Propulsion 4 | . 1 . . . . 3 . Utility 4 | . 1 . 1 . . 2 . Weapon 4 | . . . . . . 4 . Highest Loss Streak 4 | . 2 . 2 . . 4 . To Critical Strikes . | . . . . . . . . Average Slot Usage (%) 79 | . 90 100 89 88 72 52 66 Engine 5 | . 14 14 7 . . . 8 Treads 15 | . . . 17 22 18 14 17 Leg 3 | . 9 28 4 . . . . Device 4 | . 11 14 7 . . . . Storage 10 | . 14 14 11 11 9 9 9 Hackware 5 | . . . 2 11 9 9 9 Protection 11 | . . . 17 22 18 3 6 Energy Gun 1 | . 14 14 . . . . . Ballistic Gun 8 | . 14 14 11 11 3 . 3 Ballistic Cannon 9 | . . . 10 11 14 12 12 Naked Turns . | . . . . . . . . Heaviest Build 65 | 15 15 15 37 37 42 47 65 Greatest Support 42 | 26 26 20 40 40 40 40 42 Greatest Overweight (x) 9 | . 1 . 1 . 1 1 9 Average Overweight (x) . | . . . . . . . . Largest Inventory Capacity 15 | 8 8 8 15 15 15 15 15 Average Capacity 11 | 5 8 8 8 15 15 15 15 Most Carried 15 | 5 8 8 10 13 15 14 15 Average Carried 9 | 3 5 7 8 12 14 11 12 Final Capacity 15 | 8 8 8 15 15 15 15 15 Final Carried 15 | 3 8 8 10 13 15 8 15 Class Distribution -------------------- 100% | Mutant Dominant Class ---------------- Mutant | -10/Materials Mutant | -10/Mines Mutant | -9/Materials Mutant | -9/Mines Mutant | -8/Materials Mutant | -8/Garrison Mutant | -8/Materials Resources | -11 -10 -10 -9 -9 -8 -8 -8 ----------- Run | Yrd Mat Min Mat Min Mat Gar Mat Matter Collected 1970 | 201 166 108 728 93 . 241 433 Remotely . | . . . . . . . . Salvage Created 1481 | 44 294 . 657 23 24 214 225 Parts 102 | 4 18 . 51 3 2 12 12 Haulers Intercepted 2 | . . . 2 . . . . Recyclers Shooed 2 | . . 1 1 . . . . Parts Field Recycled . | . . . . . . . . Retrieved Matter . | . . . . . . . . Parts Self-Destructed . | . . . . . . . . Prevented . | . . . . . . . . Kills | -11 -10 -10 -9 -9 -8 -8 -8 ------- Run | Yrd Mat Min Mat Min Mat Gar Mat Combat Hostiles Destroyed 43 | . 6 . 19 . . 12 6 Guns 14 | . 6 . 8 . . . . Cannons 21 | . . . 11 . . 4 6 AOE 8 | . . . . . . 8 . Classes Destroyed 10 | 1 2 . 5 . . 1 1 Worker 3 | . . . 2 1 . . . Builder 3 | . 1 . 2 . . . . Tunneler 2 | 2 . . . . . . . Hauler 2 | . . . 2 . . . . Watcher 4 | . . . 3 . 1 . . Swarmer 10 | . . . 7 . . 3 . Grunt 23 | . 6 . 9 . . 6 2 Duelist 1 | . . . . . . . 1 Sentry 7 | . . . 3 . . 2 2 Hunter 2 | . . . . . . 1 1 Best Kill Streak 7 | 2 3 . 7 1 1 7 3 Combat Bots Only 7 | . 3 . 4 . . 7 3 Max Kills in Single Turn 4 | 1 1 . 2 1 1 4 2 Gunslinging . | . . . . . . . . Exploded 4 | . . . . . . 4 . Melee . | . . . . . . . . Uniques/NPCs Destroyed . | . . . . . . . . Combat | -11 -10 -10 -9 -9 -8 -8 -8 -------- Run | Yrd Mat Min Mat Min Mat Gar Mat Hostile Shots Fired 409 | . 32 2 86 . 14 235 40 Missed 109 | . 13 1 22 . 5 57 11 Damage Taken 3545 | . 229 36 690 . 55 2063 472 Core 640 | . 20 . 60 . . 486 74 Absorbed by Shields 51 | . . . . . . 51 . Core Remaining (%) 92 | 100 . 92 . 85 . . . Volleys Fired 150 | 5 19 4 77 1 1 24 19 Largest 2 | 2 2 2 2 2 2 2 2 Hottest 96 | 70 70 70 62 62 96 96 96 Shots Fired 296 | 10 38 8 154 2 2 44 38 Gun 140 | 10 38 8 77 1 . . 6 Cannon 142 | . . . 77 1 2 30 32 Launcher 14 | . . . . . . 14 . Special . | . . . . . . . . Kinetic 254 | 5 19 4 154 2 2 30 38 Thermal 28 | 5 19 4 . . . . . Explosive 14 | . . . . . . 14 . Electromagnetic . | . . . . . . . . Robot Hit Streak 11 | 5 7 7 11 7 1 6 7 Robot Miss Streak 5 | 3 2 1 4 . 1 2 5 Penetration Max . | . . . . . . . . Secondary Targets . | . . . . . . . . Shots Hit Robots 169 | 5 26 7 83 1 1 24 22 Core Hits 90 | 2 13 3 38 1 1 22 10 Critical Kills . | . . . . . . . . Critical Parts Destroyed . | . . . . . . . . Critical Strikes 4 | . 2 . 1 . . . 1 Burn 2 | . 2 . . . . . . Blast 2 | . . . 1 . . . 1 Melee Attacks . | . . . . . . . . Impact . | . . . . . . . . Slashing . | . . . . . . . . Piercing . | . . . . . . . . Sneak Attacks . | . . . . . . . . Combat Hostiles . | . . . . . . . . Follow-up Attacks . | . . . . . . . . Damage Inflicted 3969 | 79 337 83 1586 18 27 1298 541 Guns 1241 | 79 337 83 640 18 . . 84 Cannons 1915 | . . . 937 . 27 496 455 Explosions 802 | . . . . . . 802 . Melee . | . . . . . . . . Ramming 11 | . . . 9 . . . 2 Kinetic 2906 | 29 174 46 1577 18 27 496 539 Thermal 250 | 50 163 37 . . . . . Explosive 802 | . . . . . . 802 . Electromagnetic . | . . . . . . . . Impact . | . . . . . . . . Slashing . | . . . . . . . . Piercing . | . . . . . . . . Highest Corruption . | . . . . . . . . Average Corruption . | . . . . . . . . Corruption Purged . | . . . . . . . . Corruption Blocked . | . . . . . . . . Overload Shots . | . . . . . . . . Overflow Damage 10 | . . . 2 . . 8 . Projectiles 2 | . . . 2 . . . . Explosions 8 | . . . . . . 8 . Melee . | . . . . . . . . Knockbacks 20 | . . . 9 . . 5 6 Impact . | . . . . . . . . Kinetic 18 | . . . 8 . . 5 5 Secondary 2 | . . . 1 . . . 1 Self-Inflicted Damage . | . . . . . . . . Shots . | . . . . . . . . Rammed 2 | . . . 1 . . . 1 Targets Rammed 2 | . . . 1 . . . 1 Kicked . | . . . . . . . . Crushed . | . . . . . . . . Highest Temperature 340 | . 144 48 340 26 33 272 248 Average Temperature 73 | . 42 23 81 15 20 103 65 Received Heat Transfer 1197 | . 150 21 186 . 9 606 225 Effects 2 | . . . 2 . . . . Energy Bleed 1 | . . . 1 . . . . Damage (minor) 1 | . . . 1 . . . . Siege Activations . | . . . . . . . . Robots Corrupted . | . . . . . . . . Combat Hostiles . | . . . . . . . . Parts Fried . | . . . . . . . . Impact Corruptions . | . . . . . . . . Robots Melted . | . . . . . . . . Combat Hostiles . | . . . . . . . . Parts Melted 2 | . 2 . . . . . . Heat Transferred 888 | 148 629 111 . . . . . Parts Sabotaged . | . . . . . . . . Parts Stolen . | . . . . . . . . Parts Stripped . | . . . . . . . . Power Chain Reactions . | . . . . . . . . Alert | -11 -10 -10 -9 -9 -8 -8 -8 ------- Run | Yrd Mat Min Mat Min Mat Gar Mat Peak Influence 268 | 10 131 104 268 61 7 255 245 Initial 124 | . 6 51 40 56 . 4 124 Average 106 | 3 49 57 148 37 1 130 145 Maximum Alert Level 1 | . . . 1 . . 1 1 Low Security (%) 78 | 100 100 100 65 100 100 54 78 Level 1 21 | . . . 34 . . 45 21 Level 2 . | . . . . . . . . Level 3 . | . . . . . . . . Level 4 . | . . . . . . . . Level 5 . | . . . . . . . . High Security . | . . . . . . . . Max Security . | . . . . . . . . Squads Dispatched 3 | . 2 . . . . . 1 Investigation 2 | . 2 . . . . . . Extermination . | . . . . . . . . Reinforcement 1 | . . . . . . . 1 Assault . | . . . . . . . . Garrison . | . . . . . . . . Intercept . | . . . . . . . . Searches Triggered . | . . . . . . . . Construction Impeded 1 | . . . . . . . 1 Haulers Reinforced . | . . . . . . . . Active Scanning Responses . | . . . . . . . . Cargo Convoy Interrupts . | . . . . . . . . Stealth | -11 -10 -10 -9 -9 -8 -8 -8 --------- Run | Yrd Mat Min Mat Min Mat Gar Mat Distress Signals 4 | . . . 2 . 1 . 1 Communications Jammed . | . . . . . . . . Distress Signals . | . . . . . . . . Times Spotted 69 | . 9 2 29 . 3 15 11 Peak Tracking Total 10 | . 4 2 6 . 3 10 3 Tactical Retreats . | . . . . . . . . Traps | -11 -10 -10 -9 -9 -8 -8 -8 ------- Run | Yrd Mat Min Mat Min Mat Gar Mat Traps Triggered 4 | . 2 . . . . 1 1 Indirectly . | . . . . . . . . Trap Hack Attempts . | . . . . . . . . Triggered . | . . . . . . . . Disarmed . | . . . . . . . . Reprogrammed . | . . . . . . . . Reused . | . . . . . . . . Traps Extracted . | . . . . . . . . Installed . | . . . . . . . . Triggered . | . . . . . . . . Machines | -11 -10 -10 -9 -9 -8 -8 -8 ---------- Run | Yrd Mat Min Mat Min Mat Gar Mat Machines Disabled . | . . . . . . . . Max in Single Turn . | . . . . . . . . Machines Repaired . | . . . . . . . . Machines Dismantled . | . . . . . . . . Machines Sabotaged . | . . . . . . . . Overloaded Fab Kills . | . . . . . . . . Hacking | -11 -10 -10 -9 -9 -8 -8 -8 --------- Run | Yrd Mat Min Mat Min Mat Gar Mat Machines Accessed 11 | . 1 . 4 . 1 2 3 Terminals 7 | . 1 . 2 . . 2 2 Fabricators . | . . . . . . . . Repair Stations . | . . . . . . . . Recycling Units . | . . . . . . . . Scanalyzers 3 | . . . 2 . . . 1 Garrison Access 1 | . . . . . 1 . . Total Hacks 32 | . 2 . 15 . 1 3 11 Successful 17 | . . . 12 . 1 . 4 Failed 15 | . 2 . 3 . . 3 7 Catastrophic 2 | . . . . . . 2 . Database Lockouts . | . . . . . . . . Manual 11 | . 2 . 3 . . . 6 Terminals 15 | . 2 . 3 . . 3 7 Fabricators . | . . . . . . . . Repair Stations . | . . . . . . . . Recycling Units . | . . . . . . . . Scanalyzers 16 | . . . 12 . . . 4 Garrison Access 1 | . . . . . 1 . . Terminal Hacks 1 | . . . . . . . 1 Zone Layout 1 | . . . . . . . 1 Fabricator Hacks . | . . . . . . . . Repair Station Hacks . | . . . . . . . . Recycling Unit Hacks . | . . . . . . . . Scanalyzer 12 | . . . 10 . . . 2 Insert Component 6 | . . . 5 . . . 1 Analyze 6 | . . . 5 . . . 1 Garrison Access Hacks 1 | . . . . . 1 . . Unlock Access 1 | . . . . . 1 . . Unauthorized Hacks 3 | . . . 2 . . . 1 Terminals 3 | . . . 2 . . . 1 Assimilate 1 | . . . 1 . . . . Operators 2 | . . . 1 . . . 1 Fabricators . | . . . . . . . . Repair Stations . | . . . . . . . . Recycling Units . | . . . . . . . . Scanalyzers . | . . . . . . . . Garrison Access . | . . . . . . . . Data Cores Recovered . | . . . . . . . . Used . | . . . . . . . . Hacking Detections 8 | . 1 . 2 . 1 2 2 Full Trace Events . | . . . . . . . . Feedback Events . | . . . . . . . . Feedback Blocked . | . . . . . . . . Robot Schematics Acquired . | . . . . . . . . Robots Built . | . . . . . . . . Authchips . | . . . . . . . . Time . | . . . . . . . . Total Robot Build Rating . | . . . . . . . . Part Schematics Acquired 4 | . . . 4 . . . . Parts Built . | . . . . . . . . Authchips . | . . . . . . . . Time . | . . . . . . . . Total Part Build Rating . | . . . . . . . . Parts Repaired . | . . . . . . . . Time . | . . . . . . . . Parts Recycled . | . . . . . . . . Recycled Matter . | . . . . . . . . Retrieved Matter . | . . . . . . . . Retrieved Components . | . . . . . . . . Parts Scanalyzed 6 | . . . 5 . . . 1 Part Schematics Acquired 4 | . . . 4 . . . . Parts Damaged . | . . . . . . . . Bothacking | -11 -10 -10 -9 -9 -8 -8 -8 ------------ Run | Yrd Mat Min Mat Min Mat Gar Mat Used RIF Installer . | . . . . . . . . Robots Hacked . | . . . . . . . . Non-combat . | . . . . . . . . Combat . | . . . . . . . . Robot Hacks Applied . | . . . . . . . . Relay Couplers Released . | . . . . . . . . Fabnet Peak Effective % . | . . . . . . . . Robots Rewired . | . . . . . . . . Allies Hacked . | . . . . . . . . Hacks Repelled . | . . . . . . . . Allies | -11 -10 -10 -9 -9 -8 -8 -8 -------- Run | Yrd Mat Min Mat Min Mat Gar Mat Total Allies 1 | . . 1 . . . . . Largest Group 1 | . . 1 1 . . . . Highest-Rated Group 31 | . . 31 31 . . . . Highest-Rated Ally 31 | . . 31 31 . . . . Total Orders . | . . . . . . . . Ally Attacks 15 | . . 4 11 . . . . Total Damage 184 | . . 81 103 . . . . Kills 3 | . . 2 1 . . . . Allies Corrupted . | . . . . . . . . Allies Melted 1 | . . . 1 . . . . Intel | -11 -10 -10 -9 -9 -8 -8 -8 ------- Run | Yrd Mat Min Mat Min Mat Gar Mat Robot Analysis Total . | . . . . . . . . Derelict Logs Recovered 1 | . . . . 1 . . . Drone Launches . | . . . . . . . . Drone Recoveries . | . . . . . . . . Exploration | -11 -10 -10 -9 -9 -8 -8 -8 ------------- Run | Yrd Mat Min Mat Min Mat Gar Mat Turns Passed 3736 | 120 297 192 1215 603 80 550 679 Spaces Moved 1897 | 91 196 88 593 352 34 232 311 Core 3 | 1 . . . . . . 2 Treads 1370 | . . . 443 352 34 232 309 Legs 292 | . 54 88 150 . . . . Wheels 232 | 90 142 . . . . . . Hover . | . . . . . . . . Flight . | . . . . . . . . Fastest Speed 50 | 50 90 120 120 170 170 165 157 Average Speed 159 | 90 101 120 157 170 214 203 184 Slowest Speed 500 | 100 120 120 190 170 250 250 500 Overloaded Moves . | . . . . . . . . Propulsion Burnouts . | . . . . . . . . Robots Hopped . | . . . . . . . . Cave-ins Triggered . | . . . . . . . . Exploration Rate (%) 28 | 5 30 12 38 74 6 37 24 Regions Visited 7 Branch Regions 2 Pre-discovered Areas . | . . . . . . . . Known Exits Taken 1 | . . . . . 1 . . Unknown Exits Taken 5 | 1 1 1 1 1 . . . Scrap Searched 3 | . . . . 3 . . . Spaces Dug 1 | . . . 1 . . . . Terrain Destroyed 51 | . . . 6 . . 36 9 Melee . | . . . . . . . . Projectile 15 | . . . 6 . . . 9 AOE 36 | . . . . . . 36 . Terrain Rammed . | . . . . . . . . Walls Destroyed . | . . . . . . . . Machines Disabled . | . . . . . . . . Actions | -11 -10 -10 -9 -9 -8 -8 -8 --------- Run | Yrd Mat Min Mat Min Mat Gar Mat Total 2312 | 116 256 167 732 355 40 265 381 Wait 157 | 9 31 72 27 . . 1 17 Move 1890 | 90 195 87 592 351 33 231 311 Hop . | . . . . . . . . Pick Up 31 | 5 6 2 8 3 2 . 5 Fast Attach 20 | 5 1 . 4 . 1 2 7 Attach 17 | 2 1 . 2 . . 7 5 Detach 10 | . . . 1 . . . 9 Swap 16 | . 2 . 9 . 1 . 4 Drop 19 | . 1 2 11 . 2 . 3 Fire 150 | 5 19 4 77 1 1 24 19 Melee . | . . . . . . . . Ram . | . . . . . . . . Kick . | . . . . . . . . Crush 2 | . . . 1 . . . 1 Escape Stasis . | . . . . . . . . Rewire . | . . . . . . . . Trap . | . . . . . . . . Miscellaneous . | . . . . . . . . Route ------- -11/Scrapyard -10/Materials -10/Mines -9/Materials (discovered 2 exits: *Mat / [*Min]) -9/Mines (discovered 2 exits: *Mat x2) -8/Materials -8/Garrison -8/Materials History --------- Turn | Location | Event 41 | -11/Scrapyard | Discovered new exit (range 16) 121 | -11/Scrapyard | Entered Materials 308 | -10/Materials | Build established: Mutant 353 | -10/Materials | Discovered new exit (range 15) 418 | -10/Materials | Entered Mines 419 | -10/Mines | Met a Derelict testing a Signal Generator 421 | -10/Mines | Assembled infested the area 425 | -10/Mines | Found Signal Generator 574 | -10/Mines | Discovered new exit (range 10) 610 | -10/Mines | Entered Materials 610 | -9/Materials | Accompanied by 1 ally 610 | -9/Materials | Evolved 2 slots: Utility x2 1531 | -9/Materials | Discovered new exit (range 13) 1695 | -9/Materials | Discovered new exit (range 9) 1825 | -9/Materials | Entered Mines 1935 | -9/Mines | Received a Rocket Launcher from a helpful Derelict 2135 | -9/Mines | Learned 4 Materials zone layouts 2206 | -9/Mines | Discovered new exit (range 8) 2266 | -9/Mines | Discovered new exit (range 8) 2428 | -9/Mines | Entered Materials 2428 | -8/Materials | Evolved 2 slots: Utility x2 2505 | -8/Materials | Identified exit to Garrison 2508 | -8/Materials | Entered Garrison 2570 | -8/Garrison | Triggered checkpoint 2649 | -8/Garrison | Lost 3 parts (1p2u) 2732 | -8/Garrison | Triggered checkpoint 2740 | -8/Garrison | Triggered checkpoint 2748 | -8/Garrison | Triggered checkpoint 2750 | -8/Garrison | Triggered checkpoint 2790 | -8/Garrison | Core integrity fell below 50% 2814 | -8/Garrison | Lost 4 parts (2n2w) 2830 | -8/Garrison | Destroyed 7 combat bots 2893 | -8/Garrison | Discovered new exit (range 12) 2924 | -8/Garrison | Triggered checkpoint 2937 | -8/Garrison | Core integrity fell below 20% 3058 | -8/Garrison | Entered Materials 3737 | -8/Materials | Destroyed by Y-45 Defender with Heavy Assault Rifle Last Messages --------------- 03472_ Acquired Minigun. 03548_ Y-45 Defender Hvy. Assault Rifle blasted off. 03551_ Critical hit (Burn: +37). 03554_ Y-45 Defender destroyed. 03558_ Acquired 42 matter. 03566_ Acquired 5 matter. 03576_ K-01 Serf collects debris. 03599_ Dropped Lgt. Treads. 03608_ K-01 Serf collects debris. 03616_ Dropped Med. Matter Pod. 03625_ Acquired Lgt. Treads. 03638_ R-06 Scavenger collects Med. Matter Pod. 03686_ Connecting with Terminal... >>Trojan(Operators) Trojan loaded successfully. Testing... Operator tracking enabled and active. 03701_ W-25 Informer sends out distress signal. 03734_ Y-45 Defender destroyed. 03737_ Acquired 45 matter. Map ----- +----------------------------------------------------+ | # """ #????# #????????? | | # """ #????# #????????? | | # """ #????# [ #???###??? | | # #######+######## #??? | | # """ # #??? | | # """ + #??? | | # """ # #??? | | # # ######+####### #??? | | # """ # #?# #?????###??? | | # """ # #?# #??????????? | | ###+# """ # #?# #??????????? | | ????# # #?# ! ! #???? #????? | | ????######## #?# #???? #????? | | ???????????# #?# ##### #????? | | ???????????? ??# # #????? | | ???????????? ??# # #????? | | ????????????+??# # #????? | | ???????????????#####+#### #????? | | ???????????????????# #??# #????? | | ???????????????????# #??# #????? | | ???????????????????# #??# #????? | | ????????############ #??# #????? | | ????????# ## ##?# #????? | | ????????# # ### #????? | | ????????# "T" + % #????? | | ????????# """ # ###@[ ####?? | | ????????############ ##?#* !##? | | ???????????????????# #??# !#? | | ???????????????????# "#?# !#? | | ???????????????????#+##?# Y !#? | | ??????????????????" #?##### !#? | | ????????????????"""" #?????# !##? | | ?????????????? """"" #?????# ####?? | | ???????????????""""" #?????# #????? | | ??????????????? """ #?????# #????? | | ????????????????? +????? #????? | | ?????????????????? #?????###????? | | ?????????????????? #????????????? | | ?????????????????? #????????????? | | ??????????????????+####????????????? | | ???????????????????????????????????? | | ???????????????????????????????????? | | ???????????????????????????????????? | | ???????????????????????????????????? | | ???????????????????????????????????? | | ???????????????????????????????????? | | ???????????????????????????????????? | | ???????????????????????????????????? | | ???????????????????????????????????? | | ???????????????????????????????????? | +----------------------------------------------------+ Best States ------------- Heat Dissipation 31 Energy Generation 14 Energy Capacity 275 Matter Stores 300 Matter Capacity 400 Sight Range 16 Terrain Scan Density 10 Armor Coverage 825 Evasion (%) 55 Recoil Reduction 2 Defensive Hacking 10 Item Schematics ----------------- Grenade Launcher | -9/Materials | Scanalyzed Arm. Treads | -9/Materials | Scanalyzed Lgt. Nuclear Core | -9/Materials | Scanalyzed Imp. Light Cannon | -9/Materials | Scanalyzed Robot Schematics ------------------ None Fabricated ------------ Nothing Alien Tech Used ----------------- None Achievements -------------- None Challenges ------------ None Game ------ Seed DimensionalSupersonicSteel Manual? 0 Play Time 00:41:57 Cumulative 34.9 hours Start 2024.06.21 @ 22:32:52 End 2024.06.22 @ 11:21:22 Sessions 3 Manual Loads 0 Difficulty Rogue Special Mode None Game No. 63 Rogue 63 Adventurer 0 Explorer 0 Win Type - Total 0 Types 0/0/0/0/0/0/0/0/0 Lore% 21 Gallery% 23 Achievement% 26 Wizard Run 0 Options --------- Layout 0 ASCII 0 Keyboard 0 Movement Arrows Keybinds 0 Fullscreen 2 Font 18/SmallcapsGlow Map View 76x50 Zoom Use 0% Tactical HUD 1 Map Filters NONE Filters NONE Steam 1 RUN: 92216cb8-8d56-4783-a96f-98b08f04f776